fUSD/lending_fUSD_20241028
["ID","MTS","AMOUNT","RATE_DAILY","PERIOD"]
[340926677,1730106632241,-2754.18001439,0.00043672,15]
[340926679,1730106632250,-150.0,0.00043684,2]
[340926681,1730106632259,-150.0,0.00043684,2]
[340926682,1730106632268,-150.03410965,0.00043686,120]
[340926684,1730106632277,-2754.18001439,0.00043686,15]
[340926686,1730106632287,-150.0,0.000437,2]
[340926687,1730106632295,-150.0,0.00043705,2]
[340926688,1730106632304,-150.0,0.00043707,2]
[340926689,1730106632313,-150.0,0.00043709,2]
[340926690,1730106632323,-150.03410965,0.00043726,120]
[340926691,1730106632332,-150.0,0.00043727,2]
[340926693,1730106632341,-150.0,0.00043729,2]
[340926695,1730106632350,-150.0,0.00043733,2]
[340926698,1730106632360,-150.0,0.00043735,2]
[340926700,1730106632371,-361.6792,0.00043744,2]
[340926702,1730106632380,-10601.3461,0.00043745,2]
[340926703,1730106632391,-1175.9673,0.00043745,2]
[340926705,1730106632402,-33361.0756,0.00043745,2]
[340926708,1730106632412,-3883.7576,0.00043745,2]
[340926709,1730106632422,-150.0,0.00043757,2]
[340926710,1730106632431,-221.6830649,0.00043765,16]
[340926711,1730106632440,-217.4842,0.00043766,2]
[340926712,1730106632450,-8326.73800466,0.00043767,2]
[340926713,1730106632459,-658.7272422,0.00043767,2]
[340926714,1730106632469,-150.03410965,0.00043767,120]
[340926715,1730106632478,-150.0,0.00043769,2]
[340926716,1730106632488,-150.0,0.00043783,2]
[340926717,1730106632497,-150.0,0.00043784,2]
[340926718,1730106632506,-150.0,0.00043798,2]
[340926719,1730106632515,-8500.0,0.000438,11]
[340926720,1730106632524,-4962.86074695,0.000438,5]
[340926837,1730106645736,-203.25315457,0.000196,2]
[340926838,1730106645747,-1000.0,0.00043437,2]
[340926839,1730106645757,-1000.0,0.00043666,2]
[340926840,1730106645768,-2754.18001439,0.00043699,15]
[340926841,1730106645780,-2754.18001439,0.00043713,15]
[340926842,1730106645791,-2754.18001439,0.00043726,15]
[340926843,1730106645803,-361.31986048,0.00043765,2]
[340926844,1730106645814,-361.31986039,0.00043765,2]
[340926845,1730106645825,-361.31986039,0.00043765,2]
[340926846,1730106645839,-5392.50816086,0.000438,5]
[340926847,1730106645849,-3744.71844233,0.000438,11]
[340926848,1730106645858,-153.05,0.000438,36]
[340926849,1730106645869,-153.05,0.000438,36]
[340926850,1730106645880,-153.05,0.000438,36]
[340926851,1730106645891,-153.05,0.000438,36]
[340926852,1730106645903,-153.05,0.000438,36]
[340926853,1730106645915,-153.05,0.000438,36]
[340926854,1730106645926,-150.0,0.00043825,2]
[340926855,1730106645936,-178.68,0.0004384,120]
[340926856,1730106645946,-150.0,0.00043844,2]
[340926858,1730106645956,-150.0,0.00043844,2]
[340926860,1730106645966,-2680.70497125,0.00043846,10]
[340926862,1730106645976,-150.0,0.00043847,2]
[340926864,1730106645986,-150.0,0.00043852,2]
[340926866,1730106645995,-5361.4099425,0.00043855,10]
[340926868,1730106646005,-8042.11491375,0.00043855,10]
[340926869,1730106646015,-7291.91920487,0.00043856,10]
[340926871,1730106646027,-68779.73584134,0.00043856,10]
[340927090,1730106881203,150.0,0.000151,2]
[340927101,1730107508380,144743.0,0.00015,2]
[340927121,1730107831775,-826.25400438,0.000149,2]
[340927122,1730107831784,-198.79163309,0.00014999,2]
[340927123,1730107831795,-323516.526717,0.00015,2]
[340927124,1730107831892,-465.78806071,0.00015,2]
[340927125,1730107831954,-2525.04,0.00015,2]
[340927138,1730107837922,-3241.84,0.00015,2]
[340927164,1730107839832,-136012.81006436,0.00015,2]
[340927165,1730107839841,-6726.95226432,0.00015,2]
[340927411,1730107842801,-4356.21112821,0.00015,2]
[340927412,1730107842971,-490.66010777,0.00015,2]
[340927413,1730107843143,-260.89266769,0.00015,2]
[340927414,1730107843203,-602.73215122,0.00015,2]
[340927425,1730108725949,-646.97590145,0.0004386,120]
[340927426,1730108725970,-170.0,0.0004386,120]
[340927427,1730108725990,-1188.13303363,0.0004386,120]
[340927428,1730108726010,-161.03622296,0.0004386,120]
[340927429,1730108726029,-2617.25518071,0.0004386,120]
[340927430,1730108726049,-1183.56912988,0.0004386,120]
[340927431,1730108726068,-6263.88587407,0.0004386,120]
[340927432,1730108726088,-66149.1446573,0.0004386,120]
[340927449,1730109031961,-340.28165674,0.00014634,2]
[340927451,1730109031974,-59.54604553,0.00014634,2]
[340927453,1730109031983,-173.40798076,0.000149,2]
[340927455,1730109031992,-5319.7966293,0.00015,2]
[340927463,1730109032048,-1269.29870508,0.00015,2]
[340927465,1730109032059,-4098.6,0.00015,2]
[340927467,1730109032070,-12860.52983858,0.00015,2]
[340927469,1730109032079,-162.27,0.00015342,2]
[340927471,1730109032088,-162.75,0.00015342,2]
[340927473,1730109032097,-161.2,0.00015342,2]
[340927475,1730109032106,-162.5,0.00015342,2]
[340927477,1730109032115,-441.0648568,0.000159,2]
[340927480,1730109032127,-367.07577334,0.000159,2]
[340927482,1730109032137,-296.8808084,0.00018,2]
[340927484,1730109032148,-655.60712406,0.00018,2]
[340927486,1730109032159,-420.85374406,0.00018,2]
[340927488,1730109032169,-2999.0,0.00018,2]
[340927494,1730109032210,-176.95422872,0.00018,2]
[340927496,1730109032220,-1071.55714965,0.0002,2]
[340927498,1730109032228,-268.94,0.0002,2]
[340927500,1730109032238,-150.99,0.0002,2]
[340927502,1730109032247,-153.0,0.000252,2]
[340927504,1730109032256,-248.0,0.000256,2]
[340927506,1730109032265,-167.42,0.000266,2]
[340927508,1730109032274,-1597.32047428,0.00027,2]
[340927511,1730109032292,-335.425,0.00027,2]
[340927512,1730109032303,-5945.57433358,0.00027,2]
[340927513,1730109032314,-3263.11353802,0.00027,2]
[340927515,1730109032324,-409.36005769,0.00027,2]
[340927517,1730109032333,-3000.0,0.00027,2]
[340927519,1730109032342,-983.21730778,0.00027,2]
[340927521,1730109032351,-13387.61620871,0.000275,2]
[340927523,1730109032360,-200.0,0.00029385,2]
[340927526,1730109032369,-250.0,0.00029391,2]
[340927528,1730109032378,-156.97,0.00029576,30]
[340927531,1730109032387,-42125.73712877,0.000299,2]
[340927535,1730109032398,-958.88975345,0.000299,2]
[340927543,1730109038005,-569.5689955,0.000299,2]
[340927545,1730109038141,-313.999999,0.000299,2]
[340927546,1730109038280,-6865.93900907,0.000299,2]
[340927547,1730109038289,-496.75,0.00030647,2]
[340927548,1730109038298,-152.17,0.00030685,2]
[340927549,1730109038308,-152.17,0.00030695,2]
[340927550,1730109038317,-152.17,0.00030705,2]
[340927551,1730109038326,-152.17,0.00030715,2]
[340927552,1730109038335,-152.17,0.00030725,2]
[340927553,1730109038344,-152.17,0.00030736,2]
[340927554,1730109038353,-152.17,0.00030746,2]
[340927555,1730109038362,-152.17,0.00030756,2]
[340927556,1730109038371,-152.17,0.00030766,2]
[340927557,1730109038379,-152.17,0.00030776,2]
[340927558,1730109038388,-152.17,0.00030787,2]
[340927559,1730109038397,-152.17,0.00030797,2]
[340927560,1730109038406,-152.17,0.00030807,2]
[340927561,1730109038415,-152.17,0.00030817,2]
[340927562,1730109038423,-152.17,0.00030828,2]
[340927563,1730109038433,-152.17,0.00030838,2]
[340927564,1730109038442,-177.04,0.00031469,120]
[340927565,1730109038451,-345.88,0.0003214,2]
[340927566,1730109038459,-379.97,0.00032157,2]
[340927567,1730109038468,-167.83,0.00032751,2]
[340927568,1730109038478,-250.0,0.00032751,2]
[340927569,1730109038487,-1953.75153245,0.0003291,2]
[340927570,1730109038499,-9333.21513832,0.0003291,2]
[340927572,1730109040401,-2510.508,0.0003291,2]
[340927786,1730109044013,-6507.45714935,0.0003291,2]
[340927787,1730109044160,-3595.06817988,0.0003291,2]
[340927788,1730109044169,-496.75,0.00032911,2]
[340927789,1730109044179,-489.34,0.00032921,2]
[340927790,1730109044188,-175.32,0.00033049,120]
[340927791,1730109044197,-1000.0,0.00033114,2]
[340927792,1730109044207,-2750.7,0.00033167,2]
[340927793,1730109044216,-150.0,0.00033369,7]
[340927794,1730109044225,-808.45,0.00033383,2]
[340927795,1730109044234,-572.8108,0.00034693,2]
[340927796,1730109044243,-496.75,0.00035175,2]
[340927797,1730109044252,-799.684,0.00035971,43]
[340927798,1730109044263,-167.83,0.00036026,2]
[340927799,1730109044272,-167.0,0.00036843,2]
[340927800,1730109044282,-1000.0,0.00037253,2]
[340927801,1730109044291,-496.75,0.00037439,2]
[340927802,1730109044301,-743.62860396,0.000378,15]
[340927803,1730109044311,-381.27445526,0.000379,2]
[340927804,1730109044320,-8589.69207123,0.00038,5]
[340927805,1730109044329,-1954.33,0.00038356,2]
[340927806,1730109044339,-743.62860387,0.00038462,15]
[340927807,1730109044348,-152.0,0.000386,3]
[340927808,1730109044357,-743.62860387,0.00039124,15]
[340927809,1730109044367,-167.83,0.00039301,2]
[340927810,1730109044376,-496.75,0.00039703,2]
[340927811,1730109044385,-743.62860387,0.00039787,15]
[340927812,1730109044394,-743.62860387,0.00040449,15]
[340927813,1730109044404,-998.2994,0.00041,120]
[340927814,1730109044414,-8416.0,0.00041,3]
[340927816,1730109044424,-157.0,0.00041096,2]
[340927818,1730109044434,-150.0,0.00041096,2]
[340927819,1730109044444,-1371.01914076,0.000411,2]
[340927820,1730109044454,-178.0,0.000411,2]
[340927821,1730109044464,-3314.54909996,0.000411,2]
[340927822,1730109044473,-743.62860387,0.00041111,15]
[340927823,1730109044483,-2047.0461,0.00041162,2]
[340927824,1730109044493,-1202.0218,0.00041162,2]
[340927825,1730109044503,-1000.0,0.00041393,2]
[340927826,1730109044513,-743.62860387,0.00041773,15]
[340927827,1730109044523,-54377.00171286,0.000418,2]
[340927830,1730109046046,-1000.0,0.00041,120]
[340927831,1730109046056,-67330.00000006,0.000418,2]
[340927832,1730109046184,-267.56170714,0.000411,2]
[340927833,1730109046195,-182.43829286,0.000411,2]
[340927834,1730109046204,-87.76123714,0.000418,2]
[340927842,1730110180904,-250.0,0.00015,2]
[340927871,1730110232191,-160.87,0.00015342,2]
[340927872,1730110232201,-162.13,0.00015342,2]
[340927873,1730110232213,-300.0,0.00017,2]
[340927874,1730110232223,-350.0,0.00019,2]
[340927875,1730110232232,-4105.60000001,0.00019,2]
[340927881,1730110238179,-360.66892398,0.00015242,2]
[340927883,1730110238190,-9836.38769148,0.00019,2]
[340927885,1730110238200,-400.0,0.00021,2]
[340927887,1730110238210,-177.07,0.0003226,2]
[340927888,1730110238224,-14333.6616,0.00032677,2]
[340927889,1730110238233,-160.46506104,0.00032877,2]
[340927890,1730110238242,-183.823881,0.00034136,2]
[340927891,1730110238252,-159.509837,0.00034136,2]
[340927892,1730110238261,-177.656798,0.00034136,2]
[340927893,1730110238270,-161.23448127,0.00034849,120]
[340927894,1730110238279,-162.13,0.00035616,2]
[340927895,1730110238288,-183.823881,0.00035842,2]
[340927896,1730110238297,-499.94,0.00036393,2]
[340927897,1730110238307,-2506.0,0.00037525,5]
[340927898,1730110238315,-194.74,0.00037681,120]
[340927899,1730110238324,-159.03,0.00037784,120]
[340927900,1730110238333,-613.34,0.00038187,10]
[340927901,1730110238342,-1086.16,0.00038187,10]
[340927902,1730110238351,-905.14,0.00038187,10]
[340927903,1730110238360,-43942.16976223,0.00038197,2]
[340927908,1730110240274,-360.66892398,0.00016071,2]
[340927909,1730110240283,-1873.36960406,0.00038197,2]
[340927910,1730110240296,-1011.65154527,0.00038197,2]
[340927911,1730110240307,-52500.0,0.00038197,2]
[340927912,1730110240545,-10300.55908844,0.00038197,2]
[340927913,1730110240554,-250.0,0.00038427,120]
[340927914,1730110240564,-152.0,0.000386,3]
[340927915,1730110240573,-499.94,0.00038656,2]
[340927916,1730110240582,-193.27,0.00039395,2]
[340927917,1730110240591,-176.43,0.00039758,120]
[340927918,1730110240599,-45328.0,0.0004,120]
[340927919,1730110240608,-342.86,0.00040235,2]
[340927920,1730110240617,-23900.0,0.00040244,2]
[340927921,1730110240626,-1000.0,0.00040873,2]
[340927922,1730110240636,-604.4999,0.000409,30]
[340927924,1730110240645,-639.748,0.00040901,59]
[340927925,1730110240654,-499.94,0.0004092,2]
[340927927,1730110240663,-150.0,0.00041096,2]
[340927929,1730110240672,-157.0,0.00041096,2]
[340927931,1730110240681,-150.0,0.00041096,2]
[340927933,1730110240690,-178.81131911,0.000411,2]
[340927934,1730110240699,-4351.0,0.000411,3]
[340927937,1730110240710,-52088.61183289,0.0004139,2]
[340927938,1730110240719,-399.82770227,0.00041413,2]
[340927940,1730110240728,-262.50638285,0.00041429,7]
[340927942,1730110240737,-223.08858117,0.00041515,15]
[340927944,1730110240746,-3277.0976,0.00041515,2]
[340927946,1730110240754,-1000.0,0.000416,2]
[340927948,1730110240763,-1000.0,0.000416,2]
[340927950,1730110240772,-2500.0,0.000416,2]
[340927951,1730110240781,-151.0,0.00041615,14]
[340927953,1730110240789,-3283.12596124,0.00041615,2]
[340927990,1730110244130,-1000.0,0.0004092,2]
[340927991,1730110244139,-1057.46122544,0.00041615,2]
[340927992,1730110244151,-561.1656749,0.00041615,2]
[340927993,1730110244165,-32814.44173842,0.00041615,2]
[340927994,1730110244174,-45783.1982,0.00041615,2]
[340927995,1730110244183,-36049.3299,0.000417,2]
[340927996,1730110244196,-223.08858116,0.00041766,15]
[340927997,1730110244206,-58898.610091,0.0004179,9]
[340927998,1730110244218,-151.0,0.0004179,14]
[340927999,1730110244227,-151.0,0.0004179,14]
[340928000,1730110244237,-151.0,0.0004179,14]
[340928001,1730110244247,-338.100842,0.0004179,14]
[340928002,1730110244257,-338.100842,0.0004179,14]
[340928003,1730110244266,-2104.3530191,0.000418,30]
[340928004,1730110244275,-151.0,0.000418,7]
[340928005,1730110244285,-151.0,0.000418,14]
[340928006,1730110244294,-151.0,0.000418,14]
[340928007,1730110244303,-154.053573,0.000418,14]
[340928008,1730110244312,-155.442413,0.000418,14]
[340928009,1730110244321,-154.497043,0.000418,14]
[340928010,1730110244331,-153.706338,0.000418,14]
[340928011,1730110244340,-151.0,0.000418,14]
[340928012,1730110244350,-159.476227,0.000418,14]
[340928013,1730110244359,-151.0,0.000418,14]
[340928014,1730110244369,-151.0,0.000418,14]
[340928015,1730110244378,-151.0,0.000418,14]
[340928016,1730110244387,-151.0,0.000418,14]
[340928017,1730110244396,-151.0,0.000418,14]
[340928018,1730110244406,-978.157263,0.000418,14]
[340928019,1730110244415,-978.157263,0.000418,14]
[340928020,1730110244424,-156.382209,0.000418,14]
[340928021,1730110244434,-153.139137,0.000418,14]
[340928022,1730110244445,-151.0,0.000418,14]
[340928023,1730110244454,-167.86132,0.000418,14]
[340928024,1730110244464,-151.0,0.000418,14]
[340928025,1730110244473,-151.0,0.000418,14]
[340928026,1730110244482,-151.0,0.000418,14]
[340928027,1730110244492,-151.0,0.000418,14]
[340928028,1730110244501,-359.298672,0.000418,14]
[340928029,1730110244511,-359.298672,0.000418,14]
[340928030,1730110244520,-228.122246,0.000418,14]
[340928031,1730110244529,-155.383783,0.000418,14]
[340928032,1730110244539,-228.122246,0.000418,14]
[340928033,1730110244548,-151.0,0.000418,14]
[340928034,1730110244558,-151.0,0.000418,14]
[340928035,1730110244567,-151.0,0.000418,7]
[340928037,1730110244577,-151.0,0.000418,7]
[340928038,1730110244586,-338.100842,0.000418,14]
[340928039,1730110244595,-338.100842,0.000418,14]
[340928040,1730110244605,-17925.6639407,0.0004199,9]
[340928041,1730110244615,-1000.0,0.00042,30]
[340928042,1730110244624,-30225.0,0.00042,120]
[340928043,1730110244633,-500.0,0.00042,120]
[340928044,1730110244644,-500.0,0.00042,120]
[340928045,1730110244653,-500.0,0.00042,120]
[340928046,1730110244663,-500.0,0.00042,120]
[340928047,1730110244672,-223.08858116,0.00042016,15]
[340928048,1730110244682,-5121.61826878,0.0004209,9]
[340928049,1730110244693,-338.100842,0.0004209,14]
[340928050,1730110244703,-338.100842,0.0004209,14]
[340928051,1730110244713,-11533.0,0.000421,5]
[340928052,1730110244723,-150.0,0.00042177,2]
[340928053,1730110244733,-152.401578,0.00042227,14]
[340928054,1730110244742,-242.89512,0.00042227,14]
[340928055,1730110244752,-223.08858116,0.00042267,15]
[340928056,1730110244761,-223.08858116,0.00042518,15]
[340928057,1730110244770,-2560.80913439,0.00042758,10]
[340928058,1730110244779,-223.08858116,0.00042768,15]
[340928059,1730110244788,-223.08858116,0.00043019,15]
[340928060,1730110244798,-151.0,0.00043099,14]
[340928061,1730110244807,-151.0,0.00043099,7]
[340928062,1730110244816,-151.0,0.00043099,7]
[340928063,1730110244826,-2560.80913439,0.00043168,10]
[340928064,1730110244835,-9360.34278319,0.00043168,10]
[340928065,1730110244856,-1000.0,0.00041096,2]
[340928066,1730110244866,-882.89375441,0.00043168,10]
[340928067,1730110244875,-978.157263,0.00043178,14]
[340928068,1730110244884,-978.157263,0.00043178,14]
[340928069,1730110244894,-970.71235959,0.00043178,14]
[340928078,1730110246256,-360.66892398,0.000169,2]
[340928079,1730110246265,-7.44490341,0.00043178,14]
[340928080,1730110246274,-301.26617261,0.00043178,14]
[340928081,1730110246285,-535.00001144,0.00043178,14]
[340928082,1730110246298,-141.89107895,0.00043178,14]
[340928083,1730110246307,-151.0,0.00043178,14]
[340928084,1730110246316,-151.0,0.00043178,14]
[340928085,1730110246325,-158.595339,0.00043178,14]
[340928086,1730110246335,-359.298672,0.00043178,14]
[340928087,1730110246343,-359.298672,0.00043178,14]
[340928088,1730110246352,-228.122246,0.00043178,14]
[340928089,1730110246362,-228.122246,0.00043178,14]
[340928090,1730110246371,-151.0,0.00043178,7]
[340928091,1730110246380,-151.0,0.00043178,7]
[340928092,1730110246389,-151.0,0.00043179,14]
[340928093,1730110246398,-151.0,0.00043179,14]
[340928094,1730110246407,-151.0,0.00043179,14]
[340928095,1730110246417,-499.94,0.00043184,2]
[340928096,1730110246425,-161.338125,0.00043188,14]
[340928097,1730110246434,-151.0,0.00043188,14]
[340928098,1730110246447,-156.218377,0.0004319,14]
[340928099,1730110246456,-978.157263,0.0004319,14]
[340928100,1730110246466,-978.157263,0.0004319,14]
[340928101,1730110246475,-359.298672,0.0004319,14]
[340928102,1730110246484,-359.298672,0.0004319,14]
[340928103,1730110246494,-228.122246,0.0004319,14]
[340928104,1730110246503,-228.122246,0.0004319,14]
[340928105,1730110246512,-151.0,0.0004319,7]
[340928106,1730110246521,-186.2997,0.0004319,7]
[340928107,1730110246530,-151.0,0.00043199,7]
[340928108,1730110246539,-151.0,0.00043199,14]
[340928112,1730110246684,-151.0,0.00043199,14]
[340928114,1730110246694,-338.100842,0.00043199,14]
[340928116,1730110246703,-338.100842,0.00043199,14]
[340928118,1730110246712,-4618.35409718,0.000432,10]
[340928120,1730110246724,-1113.70970627,0.000432,10]
[340928129,1730110246819,-5078.0,0.000432,10]
[340928131,1730110246830,-822.27184586,0.000432,10]
[340928133,1730110246841,-638.99151985,0.000432,10]
[340928134,1730110246852,-6857.6,0.000432,10]
[340928191,1730111108292,661773.49827394,0.00015,2]
[340928212,1730111432423,-165.61,0.00015342,2]
[340928213,1730111432433,-161.2,0.00015342,2]
[340928214,1730111432442,-160.69126408,0.000159,2]
[340928215,1730111432650,-280.37359272,0.000159,2]
[340928216,1730111432659,-1781.34640728,0.00021,2]
[340928263,1730111440653,-1607.37075656,0.00021,2]
[340928264,1730111440736,-343.17,0.00021,2]
[340928266,1730111444256,-3712.44571661,0.00021,2]
[340928269,1730111444626,-1423.897776,0.00021,2]
[340928281,1730111804091,250.0,0.00015,2]
[340928283,1730112493996,768.0,0.00025,60]
[340928294,1730112631651,-3436.55,0.00015242,2]
[340928295,1730112631662,-5389.57245879,0.00015242,2]
[340928296,1730112631672,-164.95576904,0.00015242,2]
[340928297,1730112631681,-257.04423096,0.00015242,2]
[340928298,1730112631690,-875.26698529,0.00015242,2]
[340928299,1730112631699,-156.65,0.00015342,2]
[340928300,1730112631708,-41.96760736,0.00015342,2]
[340928326,1730112639564,-118.23239264,0.00015342,2]
[340928327,1730112639574,-166.97,0.00015342,2]
[340928328,1730112639583,-150.0,0.00015431,2]
[340928329,1730112639591,-300.0,0.00017,2]
[340928330,1730112639600,-328.06253574,0.00019,2]
[340928331,1730112639612,-21.93746426,0.00019,2]
[340928332,1730112639621,-321.98710034,0.00019726,2]
[340928333,1730112639632,-354.76289966,0.00019726,2]
[340928334,1730112639641,-1353.32,0.0002079,2]
[340928335,1730112639650,-827.240651,0.00021,2]
[340928336,1730112639697,-456.09386585,0.00021,2]
[340928337,1730112639708,-3327.14600405,0.00021,2]
[340928338,1730112639717,-400.0,0.00021,2]
[340928339,1730112639726,-1182.47,0.00021,2]
[340928340,1730112639735,-300.0,0.00021917,2]
[340928341,1730112639744,-500.0,0.00021918,20]
[340928342,1730112639753,-500.0,0.00021918,20]
[340928343,1730112639762,-504.10769925,0.00021918,20]
[340928344,1730112639771,-2892.4895693,0.00025,2]
[340928345,1730112639780,-3214.22618847,0.000251,2]
[340928346,1730112639789,-269.0,0.000255,2]
[340928347,1730112639799,-749.22737702,0.000264,2]
[340928348,1730112639808,-190.98022722,0.000275,2]
[340928349,1730112639817,-3371.48078655,0.00028,2]
[340928350,1730112639826,-415.07,0.00033986,2]
[340928351,1730112639835,-250.0,0.00034758,120]
[340928352,1730112639844,-171.43,0.00035904,2]
[340928353,1730112639853,-415.07,0.0003625,2]
[340928354,1730112639862,-928.55,0.00036307,2]
[340928355,1730112639871,-193.27,0.00036536,2]
[340928356,1730112639880,-23900.0,0.0003704,2]
[340928357,1730112639889,-1000.0,0.0003731,2]
[340928358,1730112639898,-194.74,0.00037395,120]
[340928359,1730112639907,-166.57,0.00037482,2]
[340928360,1730112639916,-724.35,0.00038356,2]
[340928361,1730112639924,-415.07,0.00038514,2]
[340928362,1730112639933,-631.327,0.0003967,55]
[340928363,1730112639942,-626.12514814,0.0003999,10]
[340928364,1730112639954,-128.15485186,0.0003999,10]
[340928365,1730112639963,-3320.53187198,0.0004,30]
[340928373,1730112643844,-11291.45502,0.0004,30]
[340928374,1730112643963,-799.96622798,0.0004,30]
[340928376,1730112645567,-10646.89564487,0.0004,30]
[340928377,1730112645579,-50090.54455487,0.0004,30]
[340928378,1730112645588,-1331.94475,0.00040064,14]
[340928379,1730112645597,-415.07,0.00040778,2]
[340928380,1730112645605,-181.96955217,0.00041096,30]
[340928381,1730112645614,-150.0,0.00041096,2]
[340928382,1730112645623,-157.0,0.00041096,2]
[340928383,1730112645632,-181.96955217,0.00041644,30]
[340928384,1730112645640,-1000.0,0.00041974,2]
[340928385,1730112645650,-150.0,0.00042177,2]
[340928386,1730112645658,-181.96955217,0.00042192,30]
[340928387,1730112645667,-223.68,0.00042192,2]
[340928388,1730112645675,-150.0,0.00042192,2]
[340928389,1730112645684,-150.0,0.00042192,2]
[340928390,1730112645693,-150.0,0.00042192,2]
[340928391,1730112645703,-181.96955217,0.0004274,30]
[340928392,1730112645712,-533.3372,0.000429,2]
[340928393,1730112645877,-544.784,0.000429,2]
[340928394,1730112645888,-803.18257428,0.00043,30]
[340928395,1730112645958,-1000.0,0.00040064,14]
[340928396,1730112645967,-19202.92163347,0.00043,30]
[340928397,1730112645977,-2505.97342129,0.00043,120]
[340928398,1730112645988,-10000.0,0.00043,30]
[340928399,1730112645997,-500.0,0.00043,2]
[340928400,1730112646008,-1000.0,0.00043,2]
[340928401,1730112646018,-2870.7067,0.00043,2]
[340928402,1730112646028,-415.07,0.00043042,2]
[340928403,1730112646038,-123608.2382,0.000431,2]
[340928404,1730112646048,-151.0,0.000431,14]
[340928405,1730112646058,-151.0,0.000431,14]
[340928406,1730112646068,-202.860505,0.000431,14]
[340928407,1730112646078,-202.860505,0.000431,14]
[340928408,1730112646087,-151.0,0.000431,14]
[340928409,1730112646097,-151.0,0.000431,14]
[340928410,1730112646107,-151.0,0.000431,14]
[340928411,1730112646116,-151.0,0.000431,14]
[340928412,1730112646126,-151.0,0.000431,14]
[340928413,1730112646135,-151.0,0.000431,14]
[340928414,1730112646145,-151.0,0.000431,14]
[340928415,1730112646154,-151.0,0.000431,14]
[340928416,1730112646163,-341.367996,0.000431,14]
[340928417,1730112646173,-151.0,0.000431,14]
[340928418,1730112646182,-341.367996,0.000431,14]
[340928419,1730112646191,-861.141335,0.000431,14]
[340928420,1730112646200,-254.484622,0.000431,14]
[340928421,1730112646209,-861.141335,0.000431,14]
[340928422,1730112646218,-221.6830649,0.0004311,15]
[340928423,1730112646227,-446.03884586,0.0004318,10]
[340928424,1730112646236,-1027.42459577,0.00043183,2]
[340928425,1730112646246,-21286.76652028,0.0004319,30]
[340928426,1730112646255,-1784.15538344,0.000432,10]
[340928427,1730112646264,-1879.09665513,0.000432,10]
[340928428,1730112646273,-50000.0,0.0004321,11]
[340928429,1730112646283,-151.0,0.0004321,14]
[340928430,1730112646292,-151.0,0.0004321,14]
[340928431,1730112646302,-151.0,0.0004321,14]
[340928432,1730112646311,-159.685572,0.0004321,14]
[340928433,1730112646320,-159.685572,0.0004321,14]
[340928434,1730112646329,-151.0,0.0004321,14]
[340928435,1730112646340,-157.53835,0.0004321,14]
[340928436,1730112646351,-157.53835,0.0004321,14]
[340928437,1730112646360,-151.0,0.0004321,7]
[340928438,1730112646369,-151.0,0.0004321,7]
[340928439,1730112646378,-151.0,0.0004321,14]
[340928440,1730112646388,-151.0,0.0004321,14]
[340928441,1730112646397,-565.411758,0.0004321,14]
[340928442,1730112646406,-565.411758,0.0004321,14]
[340928443,1730112646414,-151.0,0.0004321,14]
[340928444,1730112646425,-151.0,0.0004321,14]
[340928445,1730112646435,-151.0,0.0004321,14]
[340928446,1730112646443,-151.0,0.0004321,14]